bitfinex-derivatives/quotes_SOLF0:USTF0_20250731
["timestamp","ask_amount","ask_price","bid_price","bid_amount"]
[1753966509598,3.04,179.55,179.52,3.29]
[1753966509898,3.04,179.57,179.51,3.29]
[1753966510496,8.6107,179.54,179.52,3.29]
[1753966510692,3.04,179.53,179.52,3.29]
[1753966510888,5.01001208,179.58,179.52,3.29]
[1753966511091,3.04,179.57,179.53,3.29]
[1753966511495,5.5705,179.55,179.54,3.29]
[1753966511690,8.6105,179.55,179.54,3.29]
[1753966512097,3.04,179.57,179.55,3.29]
[1753966512489,8.6098,179.57,179.53,5.5709]
[1753966512694,5.5698,179.57,179.56,3.29]
[1753966513402,5.01001208,179.62,179.51,5.01001208]
[1753966513403,8.6101,179.56,179.52,5.5711]
[1753966513703,8.6101,179.56,179.54,3.29]
[1753966514801,5.5702,179.55,179.54,3.29]
[1753966515002,8.6102,179.55,179.54,3.29]
[1753966515804,8.7809,179.53,179.51,3.09]
[1753966516102,8.7809,179.53,179.52,3.09]
[1753966516491,5.5709,179.53,179.52,3.09]
[1753966516900,5.5707,179.54,179.52,3.09]
[1753966517090,5.5707,179.54,179.53,3.09]
[1753966517294,3.21,179.57,179.52,3.09]
[1753966517494,5.5704,179.55,179.52,3.09]
[1753966519203,5.5706,179.54,179.52,3.09]
[1753966519404,5.5706,179.54,179.53,3.09]
[1753966519902,8.7806,179.54,179.53,3.09]
[1753966520201,5.5712,179.53,179.49,8.64436796]
[1753966520402,3.21,179.53,179.52,3.09]
[1753966520590,3.07236796,179.58,179.49,3.07236796]
[1753966520795,5.5706,179.54,179.5,8.6616]
[1753966520998,5.5706,179.54,179.51,3.09]
[1753966521399,5.5704,179.55,179.51,5.5713]
[1753966521606,5.5704,179.55,179.52,3.09]
[1753966522204,8.7804,179.55,179.52,3.09]
[1753966522407,8.7804,179.55,179.53,3.09]
[1753966522697,8.7804,179.55,179.54,3.09]
[1753966523493,3.21,179.57,179.54,3.09]
[1753966524199,3.07236796,179.6,179.54,3.09]
[1753966524397,7.40514766,179.59,179.54,3.09]
[1753966524592,4.19514766,179.58,179.54,3.09]
[1753966524793,9.76494766,179.57,179.53,3.07236796]
[1753966525000,8.7798,179.57,179.55,3.09]
[1753966525506,8.7799,179.56,179.55,3.09]
[1753966525801,8.7799,179.56,179.53,3.07236796]
[1753966526105,8.7806,179.54,179.53,3.09]
[1753966526311,3.07236796,179.58,179.52,3.09]
[1753966526312,3.21,179.53,179.52,3.09]
[1753966526506,3.07236796,179.58,179.52,3.09]
[1753966526708,3.21,179.56,179.5,3.09]
[1753966526909,3.21,179.56,179.5,5.5718]
[1753966527111,5.5709,179.53,179.51,3.09]
[1753966528408,8.7809,179.53,179.52,3.09]
[1753966528907,5.5709,179.53,179.52,3.09]
[1753966529311,5.5707,179.54,179.52,3.09]
[1753966529513,5.5707,179.54,179.53,3.09]
[1753966529810,9.77689624,179.54,179.53,3.09]
[1753966530017,12.98689624,179.54,179.53,3.09]
[1753966530317,12.98689624,179.54,179.49,8.64436796]
[1753966530318,5.5713,179.52,179.51,3.09]
[1753966530614,3.21,179.57,179.5,3.09]
[1753966530816,5.5708,179.54,179.5,3.09]
[1753966531016,5.5708,179.54,179.5,5.5716]
[1753966531215,5.5708,179.54,179.51,3.09]
[1753966531416,5.5709,179.53,179.51,3.09]
[1753966531813,5.5709,179.53,179.52,3.09]
[1753966532018,9.78201265,179.53,179.52,3.09]
[1753966533119,9.78201265,179.53,179.5,5.5718]
[1753966533120,3.21,179.52,179.5,3.09]
[1753966533311,4.21700463,179.51,179.47,3.07236796]
[1753966533516,4.21661887,179.5,179.49,3.09]
[1753966533711,12.99871887,179.5,179.49,3.09]
[1753966533918,4.21661887,179.5,179.46,3.09]
[1753966534220,13.00234427,179.49,179.47,3.09]
[1753966534420,8.7822,179.49,179.48,3.09]
[1753966534619,13.0025552,179.49,179.48,3.09]
[1753966535117,5.5725,179.48,179.47,3.09]
[1753966535320,4.2203552,179.48,179.38,3.09]
[1753966535512,4.2203552,179.48,179.33,11.1538]
[1753966535513,4.22256086,179.47,179.43,3.07236796]
[1753966535719,3.21,179.5,179.44,3.09]
[1753966536020,3.21,179.48,179.41,3.07236796]
[1753966536219,4.22265914,179.47,179.42,3.09]
[1753966536427,7.43265914,179.46,179.42,8.6641]
[1753966536719,4.22265914,179.45,179.43,3.09]
[1753966536925,3.21,179.47,179.43,3.09]
[1753966537127,4.22294796,179.46,179.43,3.09]
[1753966537318,4.22294796,179.45,179.43,3.09]
[1753966537518,3.21,179.47,179.43,3.09]
[1753966537717,4.22267052,179.46,179.43,3.09]
[1753966537918,4.60318853,179.49,179.44,3.09]
[1753966538121,4.22288526,179.48,179.46,3.09]
[1753966538322,4.22288526,179.47,179.46,3.09]
[1753966538522,4.22288526,179.49,179.46,3.09]
[1753966539427,3.21,179.48,179.47,3.09]
[1753966539628,7.43288526,179.48,179.47,3.09]
[1753966539923,9.79528526,179.48,179.47,3.09]
[1753966540227,4.22288526,179.48,179.47,3.09]
[1753966540421,4.22288526,179.48,179.45,5.5733]
[1753966540626,4.22288526,179.47,179.45,5.5733]
[1753966540925,5.5726,179.48,179.45,5.5733]
[1753966541130,8.7826,179.48,179.47,3.09]
[1753966541334,13.00763452,179.48,179.47,3.09]
[1753966542025,4.22503452,179.48,179.47,3.09]
[1753966542426,7.43503452,179.48,179.47,3.09]
[1753966543230,8.7824,179.48,179.47,3.09]
[1753966543434,13.00996042,179.48,179.44,3.09]
[1753966543627,8.7824,179.48,179.44,3.09]
[1753966544333,8.7824,179.48,179.45,3.09]
[1753966544525,8.7824,179.48,179.44,5.5736]
[1753966544526,5.5728,179.47,179.44,5.5736]
[1753966544722,8.7828,179.47,179.46,3.09]
[1753966544922,5.5736,179.45,179.41,3.07236796]
[1753966545128,5.5736,179.45,179.42,3.09]
[1753966545327,8.6636,179.45,179.42,3.09]
[1753966545524,8.6639,179.44,179.41,3.18]
[1753966546433,3.09,179.44,179.39,8.64746796]
[1753966546621,3.09,179.43,179.4,3.18]
[1753966546826,3.09,179.46,179.4,3.18]
[1753966547231,5.5737,179.44,179.39,3.07236796]
[1753966547429,5.5737,179.44,179.42,3.18]
[1753966548521,5.574,179.43,179.42,3.18]
[1753966549524,8.664,179.43,179.42,3.18]
[1753966550131,5.5738,179.44,179.42,3.18]
[1753966550337,8.6638,179.44,179.43,3.18]
[1753966551336,5.5741,179.43,179.4,5.5749]
[1753966551634,3.09,179.42,179.41,3.18]
[1753966552929,3.09,179.47,179.41,3.18]
[1753966553235,3.09,179.45,179.41,3.18]
[1753966553438,5.5739,179.44,179.41,3.18]
[1753966553938,5.5734,179.45,179.39,3.07236796]
[1753966554236,5.5734,179.45,179.42,3.18]
[1753966555037,3.09,179.5,179.47,3.18]
[1753966555232,4.21618035,179.49,179.47,3.18]
[1753966555432,5.5721,179.49,179.47,3.18]
[1753966555631,5.5721,179.49,179.48,3.18]
[1753966555838,4.21616846,179.49,179.48,3.18]
[1753966556131,7.70045633,179.54,179.48,3.18]
[1753966556335,3.09,179.51,179.46,3.07236796]
[1753966556531,4.21675507,179.5,179.47,3.18]
[1753966556731,3.09,179.53,179.47,3.18]
[1753966556934,4.21674289,179.52,179.47,3.18]
[1753966557130,7.30674289,179.51,179.47,3.18]
[1753966557336,4.21674289,179.5,179.47,3.18]
[1753966558239,4.21674289,179.5,179.47,5.5727]
[1753966558529,3.09,179.5,179.48,3.18]
[1753966559234,5.5721,179.49,179.48,3.18]
[1753966559733,7.70045633,179.54,179.48,3.18]
[1753966559939,5.5715,179.51,179.48,3.18]
[1753966560137,8.6615,179.51,179.48,3.18]
[1753966560536,5.5715,179.51,179.48,3.18]
[1753966561241,8.6615,179.51,179.5,3.18]
[1753966561440,12.87828667,179.51,179.5,3.18]
[1753966561936,5.5719,179.5,179.47,5.5725]
[1753966562140,8.6619,179.5,179.47,5.5725]
[1753966562340,8.6619,179.5,179.49,3.18]
[1753966562537,4.21831249,179.5,179.46,3.07236796]
[1753966562741,3.09,179.49,179.47,3.18]
[1753966563139,5.5728,179.47,179.44,5.5735]
[1753966563337,3.09,179.5,179.46,3.18]
[1753966563532,3.09,179.48,179.46,3.18]
[1753966563737,8.6626,179.48,179.46,3.18]
[1753966563944,8.6626,179.48,179.47,3.18]
[1753966564442,3.09,179.48,179.47,3.18]
[1753966564633,4.62808837,179.54,179.48,3.18]
[1753966564838,3.09,179.52,179.48,3.18]
[1753966565043,4.21655919,179.51,179.48,3.18]
[1753966565240,4.21655919,179.5,179.48,3.18]
[1753966565444,3.09,179.49,179.48,3.18]
[1753966565640,3.09,179.49,179.44,3.18]
[1753966565841,3.09,179.48,179.45,5.5733]
[1753966566046,3.09,179.52,179.44,3.18]
[1753966566243,3.09,179.5,179.44,3.18]
[1753966566444,5.5727,179.47,179.45,3.18]
[1753966566647,3.09,179.46,179.45,3.18]
[1753966566848,3.09,179.53,179.45,6.25236796]
[1753966567056,4.21774181,179.52,179.47,3.07236796]
[1753966567247,4.21774181,179.51,179.48,3.18]
[1753966567446,7.30774181,179.51,179.48,3.18]
[1753966567648,4.21774181,179.5,179.48,3.18]
[1753966568552,4.21774181,179.5,179.48,5.5724]
[1753966568747,4.21774181,179.5,179.49,3.18]
[1753966569355,7.71808837,179.55,179.49,6.25236796]
[1753966569652,4.2205027,179.54,179.5,3.18]
[1753966569851,4.2205027,179.53,179.49,3.07236796]
[1753966570155,3.09,179.53,179.52,3.18]
[1753966570448,5.5708,179.54,179.5,5.5718]
[1753966570647,4.22385529,179.53,179.5,5.5718]
[1753966571054,4.22385529,179.53,179.51,3.18]
[1753966571255,4.22385529,179.53,179.52,3.18]
[1753966571754,7.31385529,179.53,179.52,3.18]
[1753966571955,4.22385529,179.53,179.52,3.18]
[1753966572655,4.22385529,179.53,179.49,3.07236796]
[1753966572656,8.6607,179.54,179.53,3.18]
[1753966572958,12.88408811,179.54,179.53,3.18]
[1753966573358,8.6609,179.53,179.5,5.5717]
[1753966573657,3.09,179.53,179.52,3.18]
[1753966573854,7.31385765,179.53,179.52,3.18]
[1753966574055,4.22385765,179.53,179.52,3.18]
[1753966575157,5.5707,179.54,179.52,3.18]
[1753966575555,5.5707,179.54,179.51,5.5714]
[1753966575758,8.7007,179.54,179.53,3.04]
[1753966575955,12.92481215,179.54,179.53,3.04]
[1753966576951,5.5709,179.53,179.5,3.04]
[1753966577153,3.13,179.51,179.5,3.04]
[1753966577353,3.13,179.56,179.5,3.04]
[1753966577557,3.13,179.53,179.51,3.04]
[1753966577753,3.13,179.53,179.52,3.04]
[1753966577955,12.92389666,179.53,179.52,3.04]
[1753966578359,7.35299666,179.53,179.52,3.04]
[1753966580460,4.22299666,179.53,179.52,3.04]
[1753966581360,4.22299666,179.53,179.52,8.6112]
[1753966581862,4.22299666,179.53,179.52,3.04]
[1753966582358,7.35116866,179.53,179.52,3.04]
[1753966582560,3.13,179.52,179.5,3.04]
[1753966582762,3.13,179.52,179.49,3.07236796]
[1753966583059,3.13,179.56,179.5,3.04]
[1753966583261,4.22109806,179.55,179.5,3.04]
[1753966583460,4.22109806,179.54,179.5,3.04]
[1753966583763,4.22109806,179.53,179.52,3.04]
[1753966584657,12.92199806,179.53,179.52,3.04]
[1753966584850,9.79199806,179.53,179.52,3.04]
[1753966585657,4.22109806,179.53,179.52,3.04]
[1753966586257,5.5707,179.54,179.52,3.04]
[1753966586457,3.13,179.57,179.52,3.04]
[1753966586757,4.22079935,179.56,179.52,3.04]
[1753966586958,4.22079935,179.55,179.54,8.6105]
[1753966587260,4.22079935,179.55,179.54,5.5705]
[1753966587563,8.6995,179.58,179.55,5.5702]
[1753966587860,4.22021132,179.57,179.56,3.04]
[1753966588456,9.78981132,179.57,179.56,3.04]
[1753966588662,3.13,179.56,179.54,3.04]
[1753966588863,3.13,179.56,179.53,3.07236796]
[1753966589163,3.13,179.56,179.55,3.04]
[1753966589362,7.34933441,179.56,179.55,3.04]
[1753966589864,3.13,179.55,179.54,3.04]
[1753966590364,8.7002,179.55,179.54,3.04]
[1753966590563,3.13,179.55,179.54,3.04]
[1753966591259,5.5702,179.56,179.52,5.571]
[1753966591460,8.7002,179.56,179.55,3.04]
[1753966591661,9.78804862,179.56,179.55,3.04]
[1753966591858,4.21784862,179.56,179.55,3.04]
[1753966592661,7.75808837,179.61,179.56,3.04]
[1753966592861,3.13,179.59,179.56,3.07236796]
[1753966593063,3.13,179.59,179.57,3.04]
[1753966593258,3.13,179.61,179.57,3.04]
[1753966593465,4.21854535,179.6,179.57,3.04]
[1753966593764,3.13,179.58,179.57,3.04]
[1753966593954,3.13,179.58,179.46,14.21796796]
[1753966594156,103.1,179.64,179.46,14.21796796]
[1753966594157,3.13,179.56,179.53,3.04]
[1753966594661,5.5698,179.57,179.53,3.04]
[1753966594861,8.6998,179.57,179.53,3.04]
[1753966595269,8.6998,179.57,179.54,5.5705]
[1753966595468,3.13,179.57,179.55,3.04]
[1753966595858,3.13,179.57,179.56,3.04]
[1753966596058,7.34592653,179.57,179.56,3.04]
[1753966597467,12.91562653,179.57,179.56,3.04]
[1753966598661,3.13,179.56,179.54,3.04]
[1753966598868,4.21802735,179.55,179.5,3.07236796]
[1753966599067,3.13,179.53,179.42,3.04]
[1753966599371,8.701,179.53,179.49,5.5721]
[1753966599568,3.13,179.53,179.5,3.04]
[1753966599968,3.07236796,179.54,179.48,3.04]
[1753966600165,3.13,179.49,179.44,3.04]
[1753966600366,7.34822027,179.48,179.44,3.04]
[1753966600568,8.7026,179.48,179.44,8.6134]
[1753966600870,8.7026,179.48,179.44,3.04]
[1753966600871,3.13,179.48,179.44,3.04]
[1753966601170,3.13,179.49,179.41,3.04]
[1753966601372,3.13,179.47,179.41,3.04]
[1753966601567,4.62808837,179.52,179.42,3.07236796]
[1753966601766,5.5719,179.5,179.45,3.04]
[1753966601971,4.21762106,179.49,179.45,3.04]
[1753966602177,4.21762106,179.49,179.46,5.5728]
[1753966602473,7.70045633,179.54,179.47,3.04]
[1753966602676,4.21796548,179.53,179.47,3.04]
[1753966602875,4.21796548,179.52,179.47,3.04]
[1753966603074,4.21796548,179.51,179.49,5.572]
[1753966603274,3.13,179.54,179.46,3.07236796]
[1753966603476,7.34849696,179.53,179.5,3.04]
[1753966603675,7.34849696,179.52,179.5,3.04]
[1753966603875,4.21849696,179.51,179.5,3.04]
[1753966605673,12.77999696,179.51,179.5,3.04]
[1753966605877,12.77999696,179.51,179.49,3.27]
[1753966606080,7.20849696,179.5,179.49,3.27]
[1753966606977,2.99,179.49,179.47,5.5726]
[1753966607279,2.99,179.49,179.47,8.8426]
[1753966607479,2.99,179.49,179.48,3.27]
[1753966609384,8.5616,179.51,179.48,3.27]
[1753966609581,7.2110676,179.5,179.49,3.27]
[1753966610480,4.2210676,179.5,179.49,3.27]
[1753966612983,9.7928676,179.5,179.49,3.27]
[1753966613188,12.7828676,179.5,179.46,5.5729]
[1753966613389,7.2110676,179.49,179.47,3.27]
[1753966613584,5.5718,179.5,179.45,3.27]
[1753966613785,4.21875414,179.49,179.45,3.07236796]
[1753966613985,8.5618,179.5,179.47,3.27]
[1753966614281,4.21768624,179.49,179.47,3.27]
[1753966614585,8.5618,179.5,179.48,3.27]
[1753966614775,5.5718,179.5,179.48,3.27]
[1753966615481,8.5616,179.51,179.48,8.8424]
[1753966615679,4.21655999,179.5,179.48,5.5724]
[1753966615882,8.5616,179.51,179.48,5.5724]
[1753966616081,4.21697213,179.5,179.48,5.5724]
[1753966616282,8.5616,179.51,179.48,5.5724]
[1753966616779,8.5616,179.51,179.5,3.27]
[1753966616985,12.77820619,179.51,179.5,3.27]
[1753966619484,9.78820619,179.51,179.5,3.27]
[1753966620486,12.77820619,179.51,179.5,3.27]
[1753966621086,4.62808837,179.56,179.5,3.27]
[1753966621290,4.21614904,179.55,179.53,3.27]
[1753966621489,10.19728837,179.59,179.54,3.07236796]
[1753966621690,4.21713077,179.58,179.55,3.27]
[1753966621890,4.21713077,179.57,179.55,3.27]
[1753966622091,4.21713077,179.56,179.55,3.27]
[1753966622284,4.21713077,179.56,179.55,8.84]
[1753966622488,5.5695,179.58,179.56,3.27]
[1753966622687,4.21713427,179.57,179.56,3.27]
[1753966622889,9.78673427,179.57,179.56,3.27]
[1753966623986,12.77673427,179.57,179.56,3.27]
[1753966624290,2.99,179.56,179.51,3.27]
[1753966624491,4.21713427,179.55,179.51,3.27]
[1753966624685,4.21713427,179.55,179.53,3.27]
[1753966626695,9.78743427,179.55,179.53,3.27]
[1753966626888,5.5703,179.55,179.53,3.27]
[1753966627300,8.5601,179.56,179.53,8.8408]
[1753966627591,4.34832501,179.55,179.54,3.27]
[1753966627992,5.5697,179.57,179.54,8.64296796]
[1753966628190,5.5697,179.57,179.55,3.27]
[1753966628788,4.34778675,179.56,179.55,3.27]
[1753966629291,4.34778675,179.56,179.55,8.8402]
[1753966630188,4.34778675,179.56,179.55,3.27]
[1753966630993,4.34778675,179.56,179.55,8.8402]
[1753966631389,2.99,179.6,179.55,3.27]
[1753966631592,4.34759977,179.59,179.57,3.27]
[1753966631894,4.34759977,179.58,179.57,3.27]
[1753966632093,9.91659977,179.59,179.57,3.27]
[1753966632288,4.34759977,179.58,179.57,3.27]
[1753966632692,2.99,179.57,179.54,3.07236796]
[1753966632891,2.99,179.57,179.56,3.27]
[1753966633193,8.5596,179.57,179.56,3.27]
[1753966635096,12.90751738,179.57,179.56,3.27]
[1753966635298,9.91751738,179.57,179.54,8.64276796]
[1753966635495,3.23,179.56,179.55,3.3]
[1753966636697,3.23,179.57,179.56,3.3]
[1753966636898,7.57740808,179.57,179.56,3.3]
[1753966637292,4.34740808,179.57,179.56,3.3]
[1753966637597,8.7991,179.59,179.56,3.3]
[1753966637902,4.34961199,179.58,179.56,3.3]
[1753966638091,8.7991,179.59,179.57,3.3]
[1753966638393,4.34966828,179.58,179.57,3.3]
[1753966638997,4.34966828,179.58,179.57,8.8696]
[1753966639792,3.23,179.57,179.52,3.3]
[1753966639997,7.57966828,179.56,179.52,3.3]
[1753966640198,3.23,179.56,179.52,3.3]
[1753966640398,3.23,179.56,179.53,5.5706]
[1753966640703,3.23,179.56,179.55,3.3]
[1753966640889,7.58048742,179.56,179.55,3.3]
[1753966641596,13.15038742,179.56,179.55,3.3]
[1753966641797,7.58048742,179.56,179.55,3.3]
[1753966642295,13.15038742,179.56,179.55,3.3]
[1753966642496,7.58048742,179.56,179.55,3.3]
[1753966643300,4.35048742,179.56,179.55,8.8702]
[1753966644000,4.35048742,179.56,179.55,3.3]
[1753966644699,4.35048742,179.56,179.55,8.8702]
[1753966645101,5.5694,179.58,179.55,8.8702]
[1753966645300,4.35131171,179.57,179.56,8.8699]
[1753966645594,8.7986,179.61,179.56,3.3]
[1753966645798,4.3518156,179.6,179.56,3.3]
[1753966645990,4.3518156,179.59,179.57,5.5693]
[1753966646192,4.3518156,179.59,179.58,3.3]
[1753966647402,4.62808837,179.62,179.56,3.07236796]
[1753966647598,4.3518156,179.61,179.6,3.3]
[1753966647799,4.3518156,179.62,179.6,3.3]
[1753966648002,4.3518156,179.61,179.6,3.3]
[1753966649901,3.23,179.6,179.57,3.3]
[1753966650101,3.23,179.58,179.57,3.3]
[1753966650496,3.07236796,179.62,179.57,3.3]
[1753966650803,3.23,179.59,179.58,3.3]
[1753966650997,3.23,179.59,179.54,3.07236796]
[1753966651205,4.34963646,179.59,179.56,3.3]
[1753966651404,3.23,179.57,179.56,3.3]
[1753966651601,5.5691,179.59,179.55,5.57]
[1753966651806,13.14886542,179.58,179.57,3.3]
[1753966652105,3.23,179.56,179.55,3.3]
[1753966652502,4.3496358,179.56,179.54,3.3]
[1753966652809,7.5796358,179.55,179.54,3.3]
[1753966653707,4.3496358,179.55,179.49,3.3]
[1753966653910,3.23,179.53,179.49,3.3]
[1753966654111,3.07236796,179.56,179.49,3.3]
[1753966654317,3.23,179.53,179.49,3.3]
[1753966654614,3.23,179.55,179.49,3.3]
[1753966654907,4.37688057,179.54,179.51,3.3]
[1753966655104,4.37688057,179.53,179.51,3.3]
[1753966655304,3.23,179.54,179.51,3.3]
[1753966655504,4.37777006,179.53,179.51,3.3]
[1753966655704,3.23,179.54,179.51,3.3]
[1753966655907,4.37777006,179.53,179.51,3.3]
[1753966656107,8.8006,179.54,179.51,3.3]
[1753966656309,4.37796471,179.53,179.51,3.3]
[1753966656508,3.23,179.55,179.5,3.3]
[1753966656703,4.37853497,179.54,179.49,5.572]
[1753966656913,3.23,179.52,179.48,3.3]
[1753966657208,3.23,179.5,179.43,6.37236796]
[1753966657399,8.802,179.5,179.44,3.3]
[1753966657804,5.572,179.5,179.46,5.573]
[1753966658008,3.23,179.49,179.46,5.573]
[1753966658308,3.23,179.49,179.48,3.3]
[1753966658608,4.37985258,179.49,179.43,3.07236796]
[1753966658803,3.23,179.5,179.43,3.07236796]
[1753966658998,4.38073231,179.49,179.43,3.07236796]
[1753966659207,3.23,179.5,179.47,3.3]
[1753966659702,4.38114582,179.49,179.47,3.3]
[1753966659908,3.23,179.5,179.47,3.3]
[1753966660109,4.38114582,179.49,179.47,3.3]
[1753966660307,3.23,179.5,179.47,3.3]
[1753966660508,4.38131413,179.49,179.47,3.3]
[1753966660710,3.23,179.5,179.47,3.3]
[1753966660908,4.38131413,179.49,179.47,3.3]
[1753966661102,3.23,179.5,179.47,3.3]
[1753966661310,4.62808837,179.55,179.49,3.07236796]
[1753966661511,4.38218378,179.54,179.52,3.3]
[1753966661808,4.38218378,179.53,179.52,3.3]
[1753966662005,3.23,179.56,179.52,3.3]
[1753966662207,4.38248206,179.55,179.52,3.3]
[1753966662511,4.38248206,179.54,179.52,3.3]
[1753966662712,4.38248206,179.53,179.52,3.3]
[1753966662911,3.23,179.55,179.52,3.3]
[1753966663118,4.37632347,179.54,179.52,3.3]
[1753966663302,4.37632347,179.53,179.52,3.3]
[1753966663501,4.37632347,179.54,179.52,3.3]
[1753966664203,7.60632347,179.54,179.53,3.3]
[1753966664513,13.17692347,179.54,179.53,3.3]
[1753966665314,7.60632347,179.54,179.53,3.3]
[1753966666612,4.37632347,179.54,179.53,3.3]
[1753966667121,3.21,179.56,179.53,3.3]
[1753966667315,4.37632347,179.55,179.53,3.3]
[1753966668308,4.37632347,179.54,179.53,3.3]
[1753966668917,3.21,179.58,179.54,3.09]
[1753966669119,4.37663426,179.57,179.55,3.09]
[1753966669317,4.37663426,179.56,179.55,3.09]
[1753966676233,9.94653426,179.56,179.52,3.07236796]
[1753966676433,7.58663426,179.55,179.54,3.09]
[1753966676644,7.58663426,179.55,179.48,102.8]
[1753966676645,4.37663426,179.55,179.5,3.07236796]
[1753966676836,7.58663426,179.54,179.52,3.09]
[1753966677035,3.21,179.54,179.53,3.09]
[1753966677237,7.58510668,179.54,179.53,3.09]
[1753966677639,4.37510668,179.54,179.53,3.09]
[1753966678735,4.37510668,179.54,179.48,102.8]
[1753966678935,3.21,179.57,179.53,3.09]
[1753966679141,3.21,179.55,179.53,3.09]
[1753966679346,4.37523885,179.54,179.51,5.5713]
[1753966679640,8.78,179.56,179.51,5.5713]
[1753966679839,4.37555659,179.55,179.52,3.09]
[1753966680142,4.37555659,179.54,179.52,3.09]
[1753966680342,8.7803,179.55,179.52,3.09]
[1753966680538,7.58522716,179.54,179.53,3.09]
[1753966680843,7.58522716,179.54,179.44,3.09]
[1753966680844,3.21,179.53,179.44,3.09]
[1753966681144,3.21,179.5,179.47,5.5725]
[1753966681345,4.37522716,179.49,179.48,3.09]
[1753966681538,7.58522716,179.49,179.45,3.09]
[1753966681840,3.21,179.48,179.45,3.09]
[1753966682046,3.21,179.48,179.43,3.09]
[1753966682243,3.21,179.48,179.43,8.6638]
[1753966682431,3.21,179.47,179.44,3.09]
[1753966683244,6.28236796,179.49,179.44,3.09]
[1753966683550,7.58017017,179.48,179.44,5.5736]
[1753966683737,3.21,179.48,179.45,3.09]
[1753966684046,3.21,179.49,179.45,3.09]
[1753966684345,4.37132489,179.48,179.45,3.09]
[1753966684542,3.21,179.49,179.45,3.09]
[1753966684739,4.37014293,179.48,179.45,3.09]
[1753966684938,5.5721,179.49,179.44,5.5736]
[1753966685147,5.5721,179.49,179.42,377.53236796]
[1753966685148,4.37014293,179.48,179.46,6.16236796]
[1753966685442,5.572,179.5,179.48,3.09]
[1753966685643,7.57922984,179.49,179.48,3.09]
[1753966686246,4.36922984,179.49,179.48,3.09]
[1753966687350,3.21,179.53,179.48,3.09]
[1753966687646,4.3686088,179.52,179.48,3.09]
[1753966687842,4.3686088,179.51,179.48,3.09]
[1753966688146,3.21,179.52,179.48,3.09]
[1753966688351,4.36816282,179.51,179.48,8.6623]
[1753966688646,5.5707,179.54,179.49,3.09]
[1753966688850,4.36845659,179.53,179.49,3.09]
[1753966689045,4.36845659,179.52,179.49,3.09]
[1753966689347,3.21,179.53,179.49,3.09]
[1753966689543,4.36845951,179.52,179.49,3.09]
[1753966689739,3.21,179.53,179.49,3.09]
[1753966689944,4.36863614,179.52,179.49,3.09]
[1753966690144,8.7807,179.54,179.51,3.09]
[1753966690350,4.36851586,179.53,179.51,3.09]
[1753966690546,4.36851586,179.52,179.51,3.09]
[1753966690742,4.36851586,179.52,179.5,3.07236796]
[1753966690948,8.7807,179.54,179.5,3.07236796]
[1753966691148,4.36870496,179.53,179.5,3.07236796]
[1753966691446,4.36870496,179.52,179.51,3.09]
[1753966691750,7.83808837,179.59,179.51,3.09]